[Event "Titled Tuesday Blitz May 16 Early 2023"]
[White "Averjanov, Alexey"]
[Black "Jeet, Jain"]
[WhiteFideId "14109867"]
[BlackFideId "5073022"]
[WhiteElo "2800"]
[BlackElo "2067"]
[Result "1-0"]
[Round "06"]
[TimeControl "180+2"]
[Date "2023.05.16"]
[WhiteClock "0:00:29"]
[BlackClock "0:00:00"]

1. d4 {[%clk 0:03:00]}  c6 {[%clk 0:02:57]} 2. c4 {[%clk 0:03:01]}  d5 {[%clk 0:02:56]} 3. e3 {[%clk 0:03:01]}  Nf6 {[%clk 0:02:55]} 4. Bd3 {[%clk 0:03:01]}  g6 {[%clk 0:02:54]} 5. b3 {[%clk 0:02:58]}  Bg7 {[%clk 0:02:53]} 6. Bb2 {[%clk 0:02:58]}  O-O {[%clk 0:02:53]} 7. Nd2 {[%clk 0:02:58]}  Nbd7 {[%clk 0:02:50]} 8. Ngf3 {[%clk 0:02:58]}  e6 {[%clk 0:02:49]} 9. O-O {[%clk 0:02:58]}  b6 {[%clk 0:02:48]} 10. Qe2 {[%clk 0:02:58]}  Bb7 {[%clk 0:02:49]} 11. Rfd1 {[%clk 0:02:57]}  Rc8 {[%clk 0:02:48]} 12. Rac1 {[%clk 0:02:55]}  c5 {[%clk 0:02:45]} 13. e4 {[%clk 0:02:53]}  cxd4 {[%clk 0:02:41]} 14. cxd5 {[%clk 0:02:41]}  Rxc1 {[%clk 0:02:37]} 15. Rxc1 {[%clk 0:02:42]}  exd5 {[%clk 0:02:38]} 16. e5 {[%clk 0:02:38]}  Re8 {[%clk 0:02:14]} 17. Bxd4 {[%clk 0:02:37]}  Ng4 {[%clk 0:02:09]} 18. Bb5 {[%clk 0:02:26]}  Ngxe5 {[%clk 0:02:06]} 19. Nxe5 {[%clk 0:02:16]}  Bxe5 {[%clk 0:02:05]} 20. Qd3 {[%clk 0:01:46]}  Qh4 {[%clk 0:01:47]} 21. Nf3 {[%clk 0:01:38]}  Qf4 {[%clk 0:01:04]} 22. Re1 {[%clk 0:01:27]}  Re7 {[%clk 0:00:19]} 23. Bxd7 {[%clk 0:01:23]}  Bxd4 {[%clk 0:00:17]} 24. Rxe7 {[%clk 0:01:20]}  Bf6 {[%clk 0:00:15]} 25. Re1 {[%clk 0:01:14]}  d4 {[%clk 0:00:14]} 26. Nd2 {[%clk 0:01:03]}  h5 {[%clk 0:00:14]} 27. Bb5 {[%clk 0:00:55]}  h4 {[%clk 0:00:14]} 28. Ne4 {[%clk 0:00:47]}  Bg7 {[%clk 0:00:12]} 29. Qd2 {[%clk 0:00:42]}  Qg4 {[%clk 0:00:09]} 30. h3 {[%clk 0:00:37]}  Qf5 {[%clk 0:00:08]} 31. Nd6 {[%clk 0:00:35]}  Qd5 {[%clk 0:00:05]} 32. Nxb7 {[%clk 0:00:34]}  Qxb5 {[%clk 0:00:05]} 33. Nd6 {[%clk 0:00:32]}  Qd5 {[%clk 0:00:05]} 34. Nc4 {[%clk 0:00:31]}  Bf6 {[%clk 0:00:02]} 35. Qd3 {[%clk 0:00:31]}  b5 {[%clk 0:00:02]} 36. Nd2 {[%clk 0:00:29]}  Kg7 {[%clk 0:00:00]} 37. Nf3 {[%clk 0:00:29]} 1-0


[Site "https://www.chess.com"]

[Event "Titled Tuesday Blitz May 16 Early 2023"]
[White "HamedWafa4"]
[Black "Aydincelebi, Kagan"]
[BlackFideId "6361102"]
[WhiteElo "2597"]
[BlackElo "2180"]
[Result "1-0"]
[Round "06"]
[TimeControl "180+2"]
[Date "2023.05.16"]
[WhiteClock "0:00:02"]
[BlackClock "0:00:09"]

1. e4 {[%clk 0:03:00]}  c5 {[%clk 0:02:58]} 2. Nf3 {[%clk 0:02:57]}  d6 {[%clk 0:02:58]} 3. Bb5+ {[%clk 0:02:53]}  Bd7 {[%clk 0:02:59]} 4. Bxd7+ {[%clk 0:02:52]}  Nxd7 {[%clk 0:02:59]} 5. O-O {[%clk 0:02:51]}  Ngf6 {[%clk 0:03:00]} 6. Re1 {[%clk 0:02:51]}  e6 {[%clk 0:03:01]} 7. c3 {[%clk 0:02:51]}  Be7 {[%clk 0:03:02]} 8. d4 {[%clk 0:02:51]}  O-O {[%clk 0:03:02]} 9. e5 {[%clk 0:02:50]}  dxe5 {[%clk 0:03:01]} 10. dxe5 {[%clk 0:02:51]}  Nd5 {[%clk 0:03:01]} 11. c4 {[%clk 0:02:49]}  Nb4 {[%clk 0:02:47]} 12. a3 {[%clk 0:02:37]}  Nc6 {[%clk 0:02:48]} 13. Nc3 {[%clk 0:02:36]}  a6 {[%clk 0:02:46]} 14. Bf4 {[%clk 0:02:30]}  Qc7 {[%clk 0:02:46]} 15. Qc2 {[%clk 0:02:10]}  Rfd8 {[%clk 0:02:33]} 16. Rad1 {[%clk 0:02:07]}  Nf8 {[%clk 0:02:28]} 17. h4 {[%clk 0:01:57]}  Ng6 {[%clk 0:02:27]} 18. Bg3 {[%clk 0:01:57]}  h5 {[%clk 0:02:25]} 19. Ne4 {[%clk 0:01:43]}  Nd4 {[%clk 0:02:13]} 20. Nxd4 {[%clk 0:01:38]}  Rxd4 {[%clk 0:02:14]} 21. Rxd4 {[%clk 0:01:36]}  cxd4 {[%clk 0:02:15]} 22. Nd6 {[%clk 0:01:26]}  Nxh4 {[%clk 0:01:25]} 23. Bxh4 {[%clk 0:01:16]}  Bxh4 {[%clk 0:01:26]} 24. Qe4 {[%clk 0:01:15]}  Be7 {[%clk 0:01:20]} 25. Qxd4 {[%clk 0:01:14]}  b6 {[%clk 0:01:17]} 26. b4 {[%clk 0:01:12]}  Rd8 {[%clk 0:00:59]} 27. Rd1 {[%clk 0:01:03]}  Bf8 {[%clk 0:00:42]} 28. c5 {[%clk 0:00:48]}  bxc5 {[%clk 0:00:42]} 29. bxc5 {[%clk 0:00:49]}  Rb8 {[%clk 0:00:36]} 30. Qf4 {[%clk 0:00:41]}  Rb2 {[%clk 0:00:27]} 31. Rd3 {[%clk 0:00:38]}  g6 {[%clk 0:00:19]} 32. Rf3 {[%clk 0:00:34]}  Bg7 {[%clk 0:00:14]} 33. Nxf7 {[%clk 0:00:15]}  Qxc5 {[%clk 0:00:14]} 34. Nh6+ {[%clk 0:00:14]}  Kh7 {[%clk 0:00:14]} 35. Nf7 {[%clk 0:00:14]}  Rb1+ {[%clk 0:00:12]} 36. Kh2 {[%clk 0:00:14]}  Rc1 {[%clk 0:00:11]} 37. Ng5+ {[%clk 0:00:14]}  Kg8 {[%clk 0:00:11]} 38. Qf7+ {[%clk 0:00:14]}  Kh8 {[%clk 0:00:12]} 39. Qe8+ {[%clk 0:00:14]}  Bf8 {[%clk 0:00:12]} 40. Rxf8+ {[%clk 0:00:14]}  Kg7 {[%clk 0:00:13]} 41. Qf7+ {[%clk 0:00:13]}  Kh6 {[%clk 0:00:14]} 42. Rh8+ {[%clk 0:00:13]}  Kxg5 {[%clk 0:00:14]} 43. Qf6+ {[%clk 0:00:13]}  Kg4 {[%clk 0:00:15]} 44. Qxg6+ {[%clk 0:00:13]}  Kf4 {[%clk 0:00:16]} 45. Rf8+ {[%clk 0:00:11]}  Kxe5 {[%clk 0:00:16]} 46. Qg5+ {[%clk 0:00:11]}  Kd4 {[%clk 0:00:15]} 47. Rf4+ {[%clk 0:00:11]}  Kd3 {[%clk 0:00:14]} 48. Rf3+ {[%clk 0:00:09]}  Ke2 {[%clk 0:00:12]} 49. Re3+ {[%clk 0:00:07]}  Kf1 {[%clk 0:00:11]} 50. Qf4 {[%clk 0:00:02]}  Qc7 {[%clk 0:00:10]} 51. Re5 {[%clk 0:00:02]}  Rc4 {[%clk 0:00:09]} 52. Qe3 {[%clk 0:00:02]}  Rh4+ {[%clk 0:00:10]} 53. Kg3 {[%clk 0:00:02]}  Rg4+ {[%clk 0:00:10]} 54. Kh3 {[%clk 0:00:02]}  Rxg2 {[%clk 0:00:10]} 55. Qe2+ {[%clk 0:00:01]}  Kg1 {[%clk 0:00:09]} 56. Qe1# {[%clk 0:00:02]} 1-0


[Site "https://www.chess.com"]

[Event "Titled Tuesday Blitz May 16 Early 2023"]
[White "Bondau"]
[Black "Tasev, Dejan"]
[BlackFideId "936618"]
[WhiteElo "2773"]
[BlackElo "2244"]
[Result "1-0"]
[Round "06"]
[TimeControl "180+2"]
[Date "2023.05.16"]
[WhiteClock "0:00:10"]
[BlackClock "0:00:00"]

1. e4 {[%clk 0:03:00]}  e5 {[%clk 0:02:59]} 2. Nf3 {[%clk 0:03:00]}  Nc6 {[%clk 0:02:56]} 3. Bb5 {[%clk 0:03:00]}  a6 {[%clk 0:02:56]} 4. Ba4 {[%clk 0:02:59]}  Nf6 {[%clk 0:02:54]} 5. O-O {[%clk 0:02:58]}  b5 {[%clk 0:02:54]} 6. Bb3 {[%clk 0:02:58]}  Be7 {[%clk 0:02:54]} 7. Re1 {[%clk 0:02:57]}  O-O {[%clk 0:02:54]} 8. c3 {[%clk 0:02:56]}  d5 {[%clk 0:02:53]} 9. exd5 {[%clk 0:02:50]}  Nxd5 {[%clk 0:02:51]} 10. Nxe5 {[%clk 0:02:49]}  Nxe5 {[%clk 0:02:48]} 11. Rxe5 {[%clk 0:02:50]}  c6 {[%clk 0:02:49]} 12. d4 {[%clk 0:02:47]}  Bd6 {[%clk 0:02:49]} 13. Re1 {[%clk 0:02:46]}  Qh4 {[%clk 0:02:48]} 14. g3 {[%clk 0:02:46]}  Qh3 {[%clk 0:02:47]} 15. Qf3 {[%clk 0:02:26]}  Bg4 {[%clk 0:02:42]} 16. Qg2 {[%clk 0:02:26]}  Qh5 {[%clk 0:02:41]} 17. Be3 {[%clk 0:01:58]}  Rae8 {[%clk 0:02:23]} 18. Nd2 {[%clk 0:01:57]}  Re6 {[%clk 0:02:10]} 19. Bxd5 {[%clk 0:01:20]}  cxd5 {[%clk 0:01:50]} 20. f3 {[%clk 0:01:15]}  Bh3 {[%clk 0:01:48]} 21. Qf2 {[%clk 0:01:13]}  Qg6 {[%clk 0:01:23]} 22. Re2 {[%clk 0:01:07]}  f5 {[%clk 0:01:20]} 23. f4 {[%clk 0:01:07]}  Bg4 {[%clk 0:01:18]} 24. Ree1 {[%clk 0:00:48]}  Qh5 {[%clk 0:01:12]} 25. Qg2 {[%clk 0:00:44]}  Re4 {[%clk 0:01:06]} 26. Nxe4 {[%clk 0:00:28]}  fxe4 {[%clk 0:01:05]} 27. Bd2 {[%clk 0:00:24]}  g5 {[%clk 0:01:02]} 28. Rf1 {[%clk 0:00:17]}  Bf3 {[%clk 0:00:51]} 29. Rxf3 {[%clk 0:00:17]}  exf3 {[%clk 0:00:50]} 30. Qf2 {[%clk 0:00:15]}  gxf4 {[%clk 0:00:49]} 31. gxf4 {[%clk 0:00:14]}  Kh8 {[%clk 0:00:36]} 32. Kh1 {[%clk 0:00:13]}  Rg8 {[%clk 0:00:30]} 33. Rg1 {[%clk 0:00:13]}  Rg2 {[%clk 0:00:30]} 34. Rxg2 {[%clk 0:00:12]}  fxg2+ {[%clk 0:00:30]} 35. Kxg2 {[%clk 0:00:13]}  Qg4+ {[%clk 0:00:29]} 36. Qg3 {[%clk 0:00:12]}  Qe2+ {[%clk 0:00:28]} 37. Qf2 {[%clk 0:00:13]}  Qe4+ {[%clk 0:00:28]} 38. Qf3 {[%clk 0:00:11]}  Qc2 {[%clk 0:00:25]} 39. Qe3 {[%clk 0:00:12]}  Qg6+ {[%clk 0:00:24]} 40. Kf2 {[%clk 0:00:12]}  Kg8 {[%clk 0:00:21]} 41. Qg3 {[%clk 0:00:12]}  Kf7 {[%clk 0:00:20]} 42. Qxg6+ {[%clk 0:00:10]}  Kxg6 {[%clk 0:00:21]} 43. Kf3 {[%clk 0:00:11]}  Kf5 {[%clk 0:00:21]} 44. b3 {[%clk 0:00:12]}  h5 {[%clk 0:00:20]} 45. h3 {[%clk 0:00:12]}  Be7 {[%clk 0:00:19]} 46. Be3 {[%clk 0:00:11]}  Bd6 {[%clk 0:00:19]} 47. a4 {[%clk 0:00:11]}  bxa4 {[%clk 0:00:18]} 48. bxa4 {[%clk 0:00:12]}  Ba3 {[%clk 0:00:17]} 49. Bd2 {[%clk 0:00:11]}  Bb2 {[%clk 0:00:16]} 50. Ke3 {[%clk 0:00:11]}  Ba3 {[%clk 0:00:15]} 51. Kd3 {[%clk 0:00:11]}  Bd6 {[%clk 0:00:14]} 52. c4 {[%clk 0:00:11]}  dxc4+ {[%clk 0:00:12]} 53. Kxc4 {[%clk 0:00:12]}  Ke4 {[%clk 0:00:12]} 54. d5 {[%clk 0:00:11]}  Be7 {[%clk 0:00:12]} 55. Bc1 {[%clk 0:00:09]}  Bd6 {[%clk 0:00:11]} 56. Bd2 {[%clk 0:00:08]}  Be7 {[%clk 0:00:10]} 57. a5 {[%clk 0:00:08]}  Bd6 {[%clk 0:00:10]} 58. Bc1 {[%clk 0:00:08]}  Be7 {[%clk 0:00:07]} 59. f5 {[%clk 0:00:08]}  Kxf5 {[%clk 0:00:07]} 60. Kd4 {[%clk 0:00:09]}  Bd6 {[%clk 0:00:06]} 61. Bd2 {[%clk 0:00:09]}  Be7 {[%clk 0:00:03]} 62. Be3 {[%clk 0:00:09]}  Bd6 {[%clk 0:00:03]} 63. Kc4 {[%clk 0:00:09]}  Ke5 {[%clk 0:00:02]} 64. Bc5 {[%clk 0:00:09]}  Bc7 {[%clk 0:00:00]} 65. Bb4 {[%clk 0:00:10]} 1-0


[Site "https://www.chess.com"]

[Event "Titled Tuesday Blitz May 16 Early 2023"]
[White "Sarana, Alexey"]
[Black "Eynullayev, Atilla"]
[WhiteFideId "24133795"]
[BlackFideId "13413570"]
[WhiteElo "2714"]
[BlackElo "2181"]
[Result "1-0"]
[Round "06"]
[TimeControl "180+2"]
[Date "2023.05.16"]
[WhiteClock "0:02:11"]
[BlackClock "0:01:53"]

1. d4 {[%clk 0:03:00]}  Nf6 {[%clk 0:03:00]} 2. c4 {[%clk 0:02:59]}  e6 {[%clk 0:03:00]} 3. Nc3 {[%clk 0:03:00]}  Bb4 {[%clk 0:02:59]} 4. e3 {[%clk 0:03:00]}  O-O {[%clk 0:02:59]} 5. Bd3 {[%clk 0:03:01]}  d5 {[%clk 0:02:59]} 6. a3 {[%clk 0:03:01]}  Bxc3+ {[%clk 0:02:55]} 7. bxc3 {[%clk 0:03:02]}  dxc4 {[%clk 0:02:55]} 8. Bxc4 {[%clk 0:03:03]}  c5 {[%clk 0:02:56]} 9. Ne2 {[%clk 0:03:04]}  Qc7 {[%clk 0:02:47]} 10. Qd3 {[%clk 0:03:04]}  e5 {[%clk 0:02:44]} 11. dxe5 {[%clk 0:03:04]}  Qxe5 {[%clk 0:02:44]} 12. f3 {[%clk 0:03:04]}  Nc6 {[%clk 0:02:43]} 13. e4 {[%clk 0:03:03]}  Rd8 {[%clk 0:02:34]} 14. Qe3 {[%clk 0:02:44]}  Na5 {[%clk 0:02:30]} 15. Ba2 {[%clk 0:02:37]}  Be6 {[%clk 0:02:26]} 16. Qg5 {[%clk 0:02:11]}  Bxa2 {[%clk 0:01:53]} 1-0


[Site "https://www.chess.com"]

[Event "Titled Tuesday Blitz May 16 Early 2023"]
[White "Demchenko, Anton"]
[Black "Sourath Biswas"]
[WhiteFideId "4160258"]
[BlackFideId "35091484"]
[WhiteElo "2545"]
[BlackElo "2171"]
[Result "1-0"]
[Round "06"]
[TimeControl "180+2"]
[Date "2023.05.16"]
[WhiteClock "0:00:13"]
[BlackClock "0:00:26"]

1. e4 {[%clk 0:02:55]}  c6 {[%clk 0:02:59]} 2. d4 {[%clk 0:02:55]}  d5 {[%clk 0:03:00]} 3. e5 {[%clk 0:02:55]}  Bf5 {[%clk 0:03:00]} 4. h4 {[%clk 0:02:56]}  h5 {[%clk 0:03:00]} 5. c4 {[%clk 0:02:55]}  e6 {[%clk 0:03:00]} 6. Nc3 {[%clk 0:02:55]}  Bb4 {[%clk 0:02:59]} 7. Ne2 {[%clk 0:02:45]}  Nh6 {[%clk 0:02:39]} 8. Ng3 {[%clk 0:02:44]}  Bg6 {[%clk 0:02:39]} 9. cxd5 {[%clk 0:02:31]}  cxd5 {[%clk 0:02:37]} 10. Bd3 {[%clk 0:02:32]}  Nf5 {[%clk 0:02:21]} 11. Bxf5 {[%clk 0:02:26]}  Bxf5 {[%clk 0:02:22]} 12. Nxf5 {[%clk 0:02:26]}  exf5 {[%clk 0:02:22]} 13. Bg5 {[%clk 0:02:25]}  Qb6 {[%clk 0:02:21]} 14. O-O {[%clk 0:02:23]}  Bxc3 {[%clk 0:02:17]} 15. bxc3 {[%clk 0:02:24]}  Qc6 {[%clk 0:02:07]} 16. c4 {[%clk 0:02:19]}  O-O {[%clk 0:02:07]} 17. cxd5 {[%clk 0:01:47]}  Qxd5 {[%clk 0:02:08]} 18. Qxh5 {[%clk 0:01:47]}  Qxd4 {[%clk 0:02:03]} 19. e6 {[%clk 0:00:51]}  fxe6 {[%clk 0:01:53]} 20. Rab1 {[%clk 0:00:43]}  b6 {[%clk 0:01:25]} 21. Rfd1 {[%clk 0:00:30]}  Qa4 {[%clk 0:01:05]} 22. Be7 {[%clk 0:00:18]}  Re8 {[%clk 0:01:02]} 23. Rb4 {[%clk 0:00:18]}  Qc6 {[%clk 0:00:50]} 24. Rc4 {[%clk 0:00:18]}  Rxe7 {[%clk 0:00:26]} 25. Rd8+ {[%clk 0:00:13]} 1-0


[Site "https://www.chess.com"]

[Event "Titled Tuesday Blitz May 16 Early 2023"]
[White "wqws"]
[Black "Madaminov, Mukhiddin"]
[BlackFideId "14210703"]
[WhiteElo "2594"]
[BlackElo "2511"]
[Result "1-0"]
[Round "06"]
[TimeControl "180+2"]
[Date "2023.05.16"]
[WhiteClock "0:00:11"]
[BlackClock "0:00:03"]

1. e4 {[%clk 0:03:00]}  c5 {[%clk 0:02:57]} 2. Nf3 {[%clk 0:03:00]}  d6 {[%clk 0:02:58]} 3. d4 {[%clk 0:03:01]}  cxd4 {[%clk 0:02:59]} 4. Nxd4 {[%clk 0:03:01]}  Nf6 {[%clk 0:02:59]} 5. Nc3 {[%clk 0:03:02]}  Nc6 {[%clk 0:03:00]} 6. Bg5 {[%clk 0:03:00]}  e6 {[%clk 0:02:59]} 7. Qd2 {[%clk 0:03:00]}  a6 {[%clk 0:02:59]} 8. O-O-O {[%clk 0:03:00]}  Bd7 {[%clk 0:02:59]} 9. Kb1 {[%clk 0:03:00]}  Be7 {[%clk 0:02:53]} 10. f3 {[%clk 0:02:59]}  b5 {[%clk 0:02:51]} 11. Be3 {[%clk 0:02:54]}  h5 {[%clk 0:02:49]} 12. Bd3 {[%clk 0:02:49]}  Qc7 {[%clk 0:02:48]} 13. h3 {[%clk 0:02:40]}  h4 {[%clk 0:02:48]} 14. f4 {[%clk 0:02:35]}  Rc8 {[%clk 0:02:46]} 15. Rhf1 {[%clk 0:02:32]}  b4 {[%clk 0:02:25]} 16. Nce2 {[%clk 0:02:30]}  a5 {[%clk 0:02:25]} 17. Nf3 {[%clk 0:01:39]}  a4 {[%clk 0:02:15]} 18. Ned4 {[%clk 0:01:19]}  Qb7 {[%clk 0:02:03]} 19. e5 {[%clk 0:01:18]}  Nd5 {[%clk 0:02:01]} 20. Ka1 {[%clk 0:01:13]}  Nxe3 {[%clk 0:01:41]} 21. Qxe3 {[%clk 0:01:12]}  Nxd4 {[%clk 0:01:30]} 22. Qxd4 {[%clk 0:01:03]}  d5 {[%clk 0:01:27]} 23. f5 {[%clk 0:01:00]}  exf5 {[%clk 0:01:23]} 24. e6 {[%clk 0:00:59]}  fxe6 {[%clk 0:01:17]} 25. Qxg7 {[%clk 0:00:59]}  Rf8 {[%clk 0:01:18]} 26. Ne5 {[%clk 0:00:50]}  Bf6 {[%clk 0:01:15]} 27. Qg6+ {[%clk 0:00:50]}  Ke7 {[%clk 0:01:15]} 28. Qh7+ {[%clk 0:00:48]}  Kd6 {[%clk 0:01:15]} 29. Ng6 {[%clk 0:00:35]}  a3 {[%clk 0:01:02]} 30. Qh6 {[%clk 0:00:32]}  Bxb2+ {[%clk 0:00:56]} 31. Kb1 {[%clk 0:00:32]}  Rf6 {[%clk 0:00:57]} 32. Qf4+ {[%clk 0:00:29]}  e5 {[%clk 0:00:56]} 33. Qg5 {[%clk 0:00:28]}  e4 {[%clk 0:00:53]} 34. Bxe4 {[%clk 0:00:25]}  fxe4 {[%clk 0:00:36]} 35. Rxf6+ {[%clk 0:00:24]}  Bxf6 {[%clk 0:00:37]} 36. Qxf6+ {[%clk 0:00:25]}  Kc7 {[%clk 0:00:32]} 37. Ne7 {[%clk 0:00:25]}  Bc6 {[%clk 0:00:29]} 38. Nxc8 {[%clk 0:00:20]}  Qxc8 {[%clk 0:00:27]} 39. Qe7+ {[%clk 0:00:21]}  Qd7 {[%clk 0:00:20]} 40. Qxb4 {[%clk 0:00:20]}  Qd6 {[%clk 0:00:20]} 41. Qd4 {[%clk 0:00:13]}  Kd7 {[%clk 0:00:19]} 42. Rf1 {[%clk 0:00:13]}  Qe7 {[%clk 0:00:11]} 43. c3 {[%clk 0:00:11]}  Ke6 {[%clk 0:00:10]} 44. Qh8 {[%clk 0:00:11]}  Qb7+ {[%clk 0:00:09]} 45. Kc1 {[%clk 0:00:10]}  Qb2+ {[%clk 0:00:10]} 46. Kd1 {[%clk 0:00:11]}  Ba4+ {[%clk 0:00:08]} 47. Ke1 {[%clk 0:00:11]}  Qc1+ {[%clk 0:00:09]} 48. Kf2 {[%clk 0:00:11]}  e3+ {[%clk 0:00:10]} 49. Kg1 {[%clk 0:00:10]}  Bd1 {[%clk 0:00:02]} 50. Qf6+ {[%clk 0:00:09]}  Kd7 {[%clk 0:00:03]} 51. Qe5 {[%clk 0:00:09]}  Kc6 {[%clk 0:00:03]} 52. Rf6+ {[%clk 0:00:09]}  Kc5 {[%clk 0:00:02]} 53. Qd4+ {[%clk 0:00:10]}  Kb5 {[%clk 0:00:03]} 54. Rb6+ {[%clk 0:00:10]}  Ka5 {[%clk 0:00:03]} 55. Qb4# {[%clk 0:00:11]} 1-0


[Site "https://www.chess.com"]

[Event "Titled Tuesday Blitz May 16 Early 2023"]
[White "Mekhitarian, Krikor Sevag"]
[Black "Domingo Nunez, Alejandro"]
[WhiteFideId "2107660"]
[BlackFideId "22245561"]
[WhiteElo "2604"]
[BlackElo "2291"]
[Result "1-0"]
[Round "06"]
[TimeControl "180+2"]
[Date "2023.05.16"]
[WhiteClock "0:00:06"]
[BlackClock "0:00:04"]

1. Nf3 {[%clk 0:03:00]}  g6 {[%clk 0:02:59]} 2. c4 {[%clk 0:03:00]}  Bg7 {[%clk 0:03:00]} 3. e4 {[%clk 0:02:56]}  c5 {[%clk 0:03:00]} 4. d4 {[%clk 0:02:56]}  cxd4 {[%clk 0:03:00]} 5. Nxd4 {[%clk 0:02:57]}  Nc6 {[%clk 0:02:55]} 6. Be3 {[%clk 0:02:54]}  d6 {[%clk 0:02:38]} 7. Nc3 {[%clk 0:02:51]}  Nf6 {[%clk 0:02:39]} 8. Be2 {[%clk 0:02:51]}  O-O {[%clk 0:02:40]} 9. O-O {[%clk 0:02:51]}  Bd7 {[%clk 0:02:38]} 10. Nc2 {[%clk 0:02:51]}  Rc8 {[%clk 0:02:38]} 11. Rc1 {[%clk 0:02:51]}  a6 {[%clk 0:02:38]} 12. h3 {[%clk 0:02:44]}  Qa5 {[%clk 0:02:33]} 13. a3 {[%clk 0:02:28]}  Ne5 {[%clk 0:02:33]} 14. c5 {[%clk 0:02:24]}  Be6 {[%clk 0:01:53]} 15. Nd4 {[%clk 0:01:23]}  dxc5 {[%clk 0:01:20]} 16. Nxe6 {[%clk 0:01:22]}  fxe6 {[%clk 0:01:21]} 17. f4 {[%clk 0:01:23]}  Nc6 {[%clk 0:01:16]} 18. e5 {[%clk 0:01:20]}  Rfd8 {[%clk 0:01:00]} 19. Qb3 {[%clk 0:01:19]}  Nd5 {[%clk 0:00:58]} 20. Nxd5 {[%clk 0:01:19]}  exd5 {[%clk 0:00:51]} 21. Rxc5 {[%clk 0:01:06]}  Nd4 {[%clk 0:00:51]} 22. Bxd4 {[%clk 0:00:26]}  Rxc5 {[%clk 0:00:50]} 23. Bf3 {[%clk 0:00:23]}  Rc4 {[%clk 0:00:34]} 24. Bb6 {[%clk 0:00:20]}  Qd2 {[%clk 0:00:25]} 25. Bxd8 {[%clk 0:00:20]}  e6 {[%clk 0:00:23]} 26. Qxb7 {[%clk 0:00:16]}  Rxf4 {[%clk 0:00:23]} 27. Qe7 {[%clk 0:00:15]}  Qe3+ {[%clk 0:00:21]} 28. Kh1 {[%clk 0:00:14]}  Rf7 {[%clk 0:00:06]} 29. Qxe6 {[%clk 0:00:12]}  Qf4 {[%clk 0:00:06]} 30. Bf6 {[%clk 0:00:10]}  Bh6 {[%clk 0:00:04]} 31. Qe8+ {[%clk 0:00:07]}  Rf8 {[%clk 0:00:03]} 32. Qe6+ {[%clk 0:00:07]}  Rf7 {[%clk 0:00:04]} 33. Qxd5 {[%clk 0:00:08]}  Qg3 {[%clk 0:00:04]} 34. Qd8+ {[%clk 0:00:06]}  Rf8 {[%clk 0:00:04]} 35. Bd5# {[%clk 0:00:06]} 1-0


[Site "https://www.chess.com"]

[Event "Titled Tuesday Blitz May 16 Early 2023"]
[White "Shimanov, Aleksandr"]
[Black "Jaskolka, Tomasz"]
[WhiteFideId "4198603"]
[BlackFideId "1170791"]
[WhiteElo "2631"]
[BlackElo "2155"]
[Result "1-0"]
[Round "06"]
[TimeControl "180+2"]
[Date "2023.05.16"]
[WhiteClock "0:00:09"]
[BlackClock "0:00:09"]

1. e4 {[%clk 0:03:00]}  d5 {[%clk 0:03:00]} 2. exd5 {[%clk 0:03:00]}  Nf6 {[%clk 0:02:59]} 3. b3 {[%clk 0:02:33]}  Nxd5 {[%clk 0:02:55]} 4. Bb2 {[%clk 0:02:33]}  c5 {[%clk 0:02:55]} 5. Nf3 {[%clk 0:02:33]}  Nc6 {[%clk 0:02:56]} 6. Bb5 {[%clk 0:02:33]}  Bd7 {[%clk 0:02:53]} 7. O-O {[%clk 0:02:33]}  e6 {[%clk 0:02:54]} 8. Re1 {[%clk 0:02:28]}  Be7 {[%clk 0:02:49]} 9. Bxg7 {[%clk 0:02:21]}  Rg8 {[%clk 0:02:49]} 10. Bb2 {[%clk 0:02:20]}  Bf6 {[%clk 0:02:34]} 11. Nc3 {[%clk 0:02:19]}  Nf4 {[%clk 0:02:23]} 12. g3 {[%clk 0:02:18]}  a6 {[%clk 0:02:18]} 13. Bf1 {[%clk 0:02:17]}  Qc7 {[%clk 0:02:11]} 14. Kh1 {[%clk 0:02:12]}  Nd4 {[%clk 0:01:52]} 15. Ne4 {[%clk 0:02:06]}  Bh8 {[%clk 0:01:41]} 16. Bxd4 {[%clk 0:01:29]}  cxd4 {[%clk 0:01:40]} 17. gxf4 {[%clk 0:01:26]}  d3 {[%clk 0:01:24]} 18. cxd3 {[%clk 0:01:13]}  Qxf4 {[%clk 0:01:21]} 19. Rc1 {[%clk 0:01:11]}  Bc6 {[%clk 0:01:01]} 20. Qe2 {[%clk 0:00:49]}  Bd5 {[%clk 0:01:00]} 21. Bg2 {[%clk 0:00:38]}  f5 {[%clk 0:00:50]} 22. Ng3 {[%clk 0:00:37]}  h5 {[%clk 0:00:44]} 23. Nh4 {[%clk 0:00:28]}  Qxh4 {[%clk 0:00:22]} 24. Bxd5 {[%clk 0:00:27]}  Rg6 {[%clk 0:00:23]} 25. Bxe6 {[%clk 0:00:25]}  Kf8 {[%clk 0:00:23]} 26. Bxf5 {[%clk 0:00:24]}  Rd6 {[%clk 0:00:23]} 27. Qf3 {[%clk 0:00:24]}  Bf6 {[%clk 0:00:22]} 28. Rc7 {[%clk 0:00:21]}  Rad8 {[%clk 0:00:21]} 29. Bg6 {[%clk 0:00:20]}  Qg5 {[%clk 0:00:17]} 30. Bxh5 {[%clk 0:00:11]}  Kg8 {[%clk 0:00:16]} 31. Bf7+ {[%clk 0:00:11]}  Kh8 {[%clk 0:00:16]} 32. Ne4 {[%clk 0:00:10]}  Rxd3 {[%clk 0:00:15]} 33. Nxg5 {[%clk 0:00:10]}  Rxf3 {[%clk 0:00:15]} 34. Nxf3 {[%clk 0:00:11]}  b5 {[%clk 0:00:15]} 35. Bg6 {[%clk 0:00:10]}  a5 {[%clk 0:00:14]} 36. Rg1 {[%clk 0:00:10]}  a4 {[%clk 0:00:12]} 37. Rh7+ {[%clk 0:00:10]}  Kg8 {[%clk 0:00:12]} 38. Bf5+ {[%clk 0:00:10]}  Kf8 {[%clk 0:00:12]} 39. Be6 {[%clk 0:00:10]}  Bg7 {[%clk 0:00:09]} 40. Rgxg7 {[%clk 0:00:09]} 1-0


[Site "https://www.chess.com"]

[Event "Titled Tuesday Blitz May 16 Early 2023"]
[White "Rodshtein, Maxim"]
[Black "Potkin, Vladimir"]
[WhiteFideId "2806851"]
[BlackFideId "4131061"]
[WhiteElo "2555"]
[BlackElo "2474"]
[Result "1-0"]
[Round "06"]
[TimeControl "180+2"]
[Date "2023.05.16"]
[WhiteClock "0:00:54"]
[BlackClock "0:00:15"]

1. c4 {[%clk 0:03:00]}  Nf6 {[%clk 0:02:54]} 2. g3 {[%clk 0:02:59]}  e6 {[%clk 0:02:52]} 3. Bg2 {[%clk 0:03:00]}  d5 {[%clk 0:02:53]} 4. Nf3 {[%clk 0:03:00]}  dxc4 {[%clk 0:02:52]} 5. Qa4+ {[%clk 0:03:00]}  c6 {[%clk 0:02:51]} 6. Qxc4 {[%clk 0:03:00]}  b5 {[%clk 0:02:52]} 7. Qb3 {[%clk 0:02:58]}  Bb7 {[%clk 0:02:52]} 8. O-O {[%clk 0:02:58]}  Nbd7 {[%clk 0:02:53]} 9. d4 {[%clk 0:02:58]}  a6 {[%clk 0:02:48]} 10. Ne5 {[%clk 0:02:52]}  Nxe5 {[%clk 0:02:34]} 11. dxe5 {[%clk 0:02:53]}  Nd5 {[%clk 0:02:35]} 12. Rd1 {[%clk 0:02:51]}  Qc7 {[%clk 0:02:29]} 13. Nc3 {[%clk 0:02:45]}  Qxe5 {[%clk 0:02:19]} 14. Nxd5 {[%clk 0:02:33]}  exd5 {[%clk 0:01:52]} 15. e4 {[%clk 0:02:17]}  dxe4 {[%clk 0:01:05]} 16. Bf4 {[%clk 0:02:16]}  Qe6 {[%clk 0:01:05]} 17. Qxe6+ {[%clk 0:01:41]}  fxe6 {[%clk 0:01:06]} 18. Bxe4 {[%clk 0:01:41]}  Be7 {[%clk 0:01:06]} 19. Rac1 {[%clk 0:01:35]}  Rc8 {[%clk 0:01:07]} 20. h4 {[%clk 0:01:19]}  Kf7 {[%clk 0:00:53]} 21. Rd7 {[%clk 0:01:18]}  Ba8 {[%clk 0:00:48]} 22. Bg5 {[%clk 0:01:03]}  Rhe8 {[%clk 0:00:47]} 23. Rc3 {[%clk 0:00:56]}  e5 {[%clk 0:00:15]} 24. Rf3+ {[%clk 0:00:54]} 1-0


[Site "https://www.chess.com"]